lending/lending_fUSD_20240621
["ID","MTS","AMOUNT","RATE_DAILY","PERIOD"]
[330039270,1718956803741,-500.0,0.00044657,120]
[330039271,1718956803780,-525.15273363,0.00044657,120]
[330039272,1718956803818,-735.27,0.00044657,120]
[330039273,1718956803857,-500.0,0.00044657,120]
[330039274,1718956803897,-227.95195455,0.00044657,120]
[330039275,1718956803937,-500.0,0.00044657,120]
[330039276,1718956803978,-500.0,0.00044657,120]
[330039277,1718956804017,-500.0,0.00044657,120]
[330039278,1718956804056,-2862.11,0.00044657,120]
[330039279,1718956804097,-500.0,0.00044657,120]
[330039280,1718956804138,-500.0,0.00044657,120]
[330039281,1718956804179,-500.0,0.00044657,120]
[330039282,1718956804235,-500.0,0.00044657,120]
[330039283,1718956804277,-557.27,0.00044657,120]
[330039284,1718956804318,-704.0,0.00044657,120]
[330039285,1718956804361,-649.31,0.00044657,120]
[330039286,1718956804404,-500.0,0.00044657,120]
[330039287,1718956804447,-521.07,0.00044657,120]
[330039288,1718956804493,-654.5,0.00044657,120]
[330039289,1718956804535,-623.67,0.00044657,120]
[330039290,1718956804579,-824.84,0.00044657,120]
[330039291,1718956804621,-1136.63,0.00044657,120]
[330039292,1718956804662,-500.0,0.00044657,120]
[330039293,1718956804710,-237.4744068,0.00044657,120]
[330039294,1718956804752,-500.0,0.00044657,120]
[330039295,1718956804793,-576.54,0.00044657,120]
[330039296,1718956804833,-1053.39,0.00044657,120]
[330039297,1718956804878,-694.25,0.00044657,120]
[330039298,1718956804923,-500.0,0.00044657,120]
[330039299,1718956804965,-500.0,0.00044657,120]
[330039300,1718956805007,-547.56,0.00044657,120]
[330039301,1718956805047,-500.0,0.00044657,120]
[330039302,1718956805086,-598.88,0.00044657,120]
[330039303,1718956805126,-500.0,0.00044657,120]
[330039304,1718956805167,-1091.37,0.00044657,120]
[330039305,1718956805207,-608.99,0.00044657,120]
[330039306,1718956805245,-503.01,0.00044657,120]
[330039307,1718956805286,-535.03,0.00044657,120]
[330039308,1718956805329,-500.0,0.00044657,120]
[330039309,1718956805371,-751.31,0.00044657,120]
[330039310,1718956805411,-500.0,0.00044657,120]
[330039311,1718956805458,-523.08,0.00044657,120]
[330039312,1718956805500,-1029.71,0.00044657,120]
[330039313,1718956805540,-500.0,0.00044657,120]
[330039314,1718956805579,-521.08,0.00044657,120]
[330039315,1718956805618,-500.0,0.00044657,120]
[330039316,1718956805656,-796.24,0.00044657,120]
[330039317,1718956805703,-577.45,0.00044657,120]
[330039318,1718956805743,-635.93326781,0.00044657,120]
[330039319,1718956805784,-631.09,0.00044657,120]
[330039320,1718956805827,-813.4,0.00044657,120]
[330039321,1718956805866,-798.17,0.00044657,120]
[330039322,1718956805910,-947.26,0.00044657,120]
[330039323,1718956805962,-664.08,0.00044657,120]
[330039324,1718956806003,-500.0,0.00044657,120]
[330039325,1718956806043,-2083.15,0.00044657,120]
[330039326,1718956806083,-500.0,0.00044657,120]
[330039327,1718956806315,-500.0,0.00044657,120]
[330039328,1718956806355,-568.87,0.00044657,120]
[330039329,1718956806394,-913.33,0.00044657,120]
[330039330,1718956806433,-542.93,0.00044657,120]
[330039331,1718956806482,-904.22,0.00044657,120]
[330039332,1718956806521,-500.0,0.00044657,120]
[330039333,1718956806556,-1725.1,0.00044657,120]
[330039334,1718956806592,-500.0,0.00044657,120]
[330039335,1718956806628,-500.0,0.00044657,120]
[330039336,1718956806668,-1266.6,0.00044657,120]
[330039337,1718956806705,-679.53,0.00044657,120]
[330039338,1718956806743,-1634.34,0.00044657,120]
[330039339,1718956806782,-500.0,0.00044657,120]
[330039340,1718956806818,-1195.59,0.00044657,120]
[330039341,1718956806855,-1276.61,0.00044657,120]
[330039342,1718956806892,-542.12,0.00044657,120]
[330039343,1718956806934,-500.0,0.00044657,120]
[330039344,1718956806985,-500.0,0.00044657,120]
[330039345,1718956807021,-500.0,0.00044657,120]
[330039346,1718956807058,-648.64,0.00044657,120]
[330039347,1718956807094,-583.6,0.00044657,120]
[330039348,1718956807130,-524.1,0.00044657,120]
[330039349,1718956807169,-1891.87,0.00044657,120]
[330039350,1718956807212,-869.31,0.00044657,120]
[330039351,1718956807252,-979.44,0.00044657,120]
[330039352,1718956807290,-2188.81,0.00044657,120]
[330039353,1718956807330,-500.0,0.00044657,120]
[330039354,1718956807372,-642.81,0.00044657,120]
[330039355,1718956807412,-500.0,0.00044657,120]
[330039356,1718956807467,-500.0,0.00044657,120]
[330039357,1718956807507,-1990.64,0.00044657,120]
[330039358,1718956807546,-500.0,0.00044657,120]
[330039359,1718956807584,-500.0,0.00044657,120]
[330039360,1718956807622,-500.0,0.00044657,120]
[330039361,1718956807658,-618.15,0.00044657,120]
[330039362,1718956807694,-1644.48,0.00044657,120]
[330039363,1718956807730,-500.0,0.00044657,120]
[330039364,1718956807765,-1081.88,0.00044657,120]
[330039365,1718956807801,-500.0,0.00044657,120]
[330039366,1718956807835,-500.0,0.00044657,120]
[330039367,1718956807872,-1130.5,0.00044657,120]
[330039368,1718956807914,-2370.45,0.00044657,120]
[330039369,1718956807962,-862.92,0.00044657,120]
[330039370,1718956807998,-500.0,0.00044657,120]
[330039371,1718956808040,-912.28,0.00044657,120]
[330039372,1718956808083,-855.26,0.00044657,120]
[330039373,1718956808119,-500.0,0.00044657,120]
[330039374,1718956808156,-947.23,0.00044657,120]
[330039375,1718956808193,-774.42,0.00044657,120]
[330039376,1718956808229,-1081.69,0.00044657,120]
[330039377,1718956808266,-1073.21,0.00044657,120]
[330039378,1718956808301,-500.0,0.00044657,120]
[330039379,1718956808336,-500.0,0.00044657,120]
[330039380,1718956808375,-1329.19,0.00044657,120]
[330039381,1718956808410,-627.26,0.00044657,120]
[330039382,1718956808448,-500.0,0.00044657,120]
[330039383,1718956808489,-500.0,0.00044657,120]
[330039384,1718956808525,-500.0,0.00044657,120]
[330039385,1718956808560,-1066.12,0.00044657,120]
[330039386,1718956808595,-774.59,0.00044657,120]
[330039387,1718956808628,-500.0,0.00044657,120]
[330039388,1718956808663,-500.0,0.00044657,120]
[330039389,1718956808704,-885.68,0.00044657,120]
[330039390,1718956808740,-500.0,0.00044657,120]
[330039391,1718956808776,-838.21,0.00044657,120]
[330039392,1718956808810,-1218.16,0.00044657,120]
[330039393,1718956808845,-500.0,0.00044657,120]
[330039394,1718956808878,-500.0,0.00044657,120]
[330039395,1718956808912,-950.19,0.00044657,120]
[330039396,1718956808944,-697.69,0.00044657,120]
[330039397,1718956808993,-500.0,0.00044657,120]
[330039398,1718956809032,-628.62317012,0.00044657,120]
[330039399,1718956809066,-500.0,0.00044657,120]
[330039400,1718956809099,-500.0,0.00044657,120]
[330039401,1718956809133,-985.84,0.00044657,120]
[330039402,1718956809167,-250.0,0.00044657,120]
[330039403,1718956809207,-500.0,0.00044657,120]
[330039404,1718956809242,-1888.63,0.00044657,120]
[330039405,1718956809276,-500.0,0.00044657,120]
[330039406,1718956809310,-707.0,0.00044657,120]
[330039407,1718956809344,-3042.3,0.00044657,120]
[330039408,1718956809377,-500.0,0.00044657,120]
[330039409,1718956809411,-725.5,0.00044657,120]
[330039410,1718956809450,-710.95,0.00044657,120]
[330039411,1718956809484,-967.38,0.00044657,120]
[330039412,1718956809518,-781.3,0.00044657,120]
[330039413,1718956809550,-626.45,0.00044657,120]
[330039414,1718956809583,-500.0,0.00044657,120]
[330039415,1718956809616,-572.6,0.00044657,120]
[330039416,1718956809650,-1748.28,0.00044657,120]
[330039417,1718956809683,-500.0,0.00044657,120]
[330039418,1718956809718,-500.0,0.00044657,120]
[330039419,1718956809750,-931.79,0.00044657,120]
[330039420,1718956809782,-520.05,0.00044657,120]
[330039421,1718956809814,-866.81,0.00044657,120]
[330039422,1718956809847,-1759.65,0.00044657,120]
[330039423,1718956809884,-1315.17,0.00044657,120]
[330039424,1718956809916,-500.0,0.00044657,120]
[330039425,1718956809950,-864.34,0.00044657,120]
[330039426,1718956809984,-1968.37,0.00044657,120]
[330039427,1718956810016,-572.29,0.00044657,120]
[330039428,1718956810049,-1120.37,0.00044657,120]
[330039429,1718956810081,-514.17,0.00044657,120]
[330039430,1718956810138,-705.81,0.00044657,120]
[330039431,1718956810373,-500.0,0.00044657,120]
[330039432,1718956810419,-500.0,0.00044657,120]
[330039433,1718956810463,-500.0,0.00044657,120]
[330039434,1718956810506,-500.0,0.00044657,120]
[330039435,1718956810549,-1558.75,0.00044657,120]
[330039436,1718956810594,-625.32,0.00044657,120]
[330039437,1718956810638,-500.0,0.00044657,120]
[330039438,1718956810685,-3050.92,0.00044657,120]
[330039439,1718956810731,-1747.68,0.00044657,120]
[330039440,1718956810769,-2360.82,0.00044657,120]
[330039441,1718956810808,-500.0,0.00044657,120]
[330039442,1718956810847,-500.0,0.00044657,120]
[330039443,1718956810890,-1620.74,0.00044657,120]
[330039444,1718956810929,-500.0,0.00044657,120]
[330039445,1718956810974,-500.0,0.00044657,120]
[330039446,1718956811019,-2733.95,0.00044657,120]
[330039447,1718956811063,-770.73,0.00044657,120]
[330039448,1718956811106,-500.0,0.00044657,120]
[330039449,1718956811145,-1051.1,0.00044657,120]
[330039450,1718956811184,-500.0,0.00044657,120]
[330039451,1718956811225,-500.0,0.00044657,120]
[330039452,1718956811263,-500.0,0.00044657,120]
[330039453,1718956811302,-970.33,0.00044657,120]
[330039454,1718956811340,-617.18,0.00044657,120]
[330039455,1718956811377,-500.0,0.00044657,120]
[330039456,1718956811416,-1509.47,0.00044657,120]
[330039457,1718956811452,-1588.68,0.00044657,120]
[330039458,1718956811489,-500.0,0.00044657,120]
[330039459,1718956811525,-500.0,0.00044657,120]
[330039460,1718956811562,-664.31,0.00044657,120]
[330039461,1718956811599,-500.0,0.00044657,120]
[330039462,1718956811636,-500.0,0.00044657,120]
[330039463,1718956811672,-688.95,0.00044657,120]
[330039464,1718956811709,-1441.36,0.00044657,120]
[330039465,1718956811745,-1460.58,0.00044657,120]
[330039466,1718956811780,-1346.01,0.00044657,120]
[330039467,1718956811816,-500.0,0.00044657,120]
[330039468,1718956811852,-500.0,0.00044657,120]
[330039469,1718956811890,-500.0,0.00044657,120]
[330039470,1718956811928,-500.0,0.00044657,120]
[330039471,1718956811967,-500.0,0.00044657,120]
[330039472,1718956812006,-525.69,0.00044657,120]
[330039473,1718956812045,-2111.76,0.00044657,120]
[330039474,1718956812083,-726.65,0.00044657,120]
[330039475,1718956812122,-839.74,0.00044657,120]
[330039476,1718956812159,-500.0,0.00044657,120]
[330039477,1718956812205,-1296.32,0.00044657,120]
[330039478,1718956812243,-2023.83,0.00044657,120]
[330039479,1718956812282,-964.89,0.00044657,120]
[330039480,1718956812319,-500.0,0.00044657,120]
[330039481,1718956812360,-500.0,0.00044657,120]
[330039482,1718956812400,-558.32,0.00044657,120]
[330039483,1718956812438,-692.7,0.00044657,120]
[330039484,1718956812485,-1466.59,0.00044657,120]
[330039485,1718956812522,-995.34,0.00044657,120]
[330039486,1718956812560,-1769.9,0.00044657,120]
[330039487,1718956812596,-186.91302858,0.00044657,120]
[330039488,1718956812634,-1640.68,0.00044657,120]
[330039489,1718956812670,-181.3150646,0.00044657,120]
[330039490,1718956812705,-500.0,0.00044657,120]
[330039491,1718956812743,-2592.71,0.00044657,120]
[330039492,1718956812781,-523.15,0.00044657,120]
[330039493,1718956812819,-557.96,0.00044657,120]
[330039494,1718956812855,-1316.85,0.00044657,120]
[330039495,1718956812892,-1287.84,0.00044657,120]
[330039496,1718956812934,-2058.4,0.00044657,120]
[330039497,1718956812976,-500.0,0.00044657,120]
[330039498,1718956813015,-689.75,0.00044657,120]
[330039499,1718956813054,-500.0,0.00044657,120]
[330039500,1718956813095,-682.56,0.00044657,120]
[330039501,1718956813136,-1435.98,0.00044657,120]
[330039502,1718956813173,-1044.29,0.00044657,120]
[330039503,1718956813210,-1609.7,0.00044657,120]
[330039504,1718956813246,-1129.79,0.00044657,120]
[330039505,1718956813283,-500.0,0.00044657,120]
[330039506,1718956813321,-1100.01,0.00044657,120]
[330039507,1718956813358,-657.7,0.00044657,120]
[330039508,1718956813398,-1090.44,0.00044657,120]
[330039509,1718956813438,-548.63,0.00044657,120]
[330039510,1718956813482,-723.87,0.00044657,120]
[330039511,1718956813522,-500.0,0.00044657,120]
[330039512,1718956813563,-1418.84,0.00044657,120]
[330039513,1718956813603,-964.53,0.00044657,120]
[330039514,1718956813642,-925.44,0.00044657,120]
[330039515,1718956813680,-1219.64,0.00044657,120]
[330039516,1718956813715,-503.07,0.00044657,120]
[330039517,1718956813751,-935.33,0.00044657,120]
[330039518,1718956813787,-519.15,0.00044657,120]
[330039519,1718956813824,-2270.49,0.00044657,120]
[330039520,1718956813861,-500.0,0.00044657,120]
[330039521,1718956813901,-870.03,0.00044657,120]
[330039522,1718956813939,-548.39,0.00044657,120]
[330039523,1718956813981,-500.0,0.00044657,120]
[330039524,1718956814019,-771.08,0.00044657,120]
[330039525,1718956814056,-500.0,0.00044657,120]
[330039526,1718956814092,-500.0,0.00044657,120]
[330039527,1718956814128,-500.0,0.00044657,120]
[330039528,1718956814165,-500.0,0.00044657,120]
[330039529,1718956814203,-526.54,0.00044657,120]
[330039530,1718956814238,-500.0,0.00044657,120]
[330039531,1718956814277,-500.0,0.00044657,120]
[330039532,1718956814316,-1852.58,0.00044657,120]
[330039533,1718956814357,-981.43,0.00044657,120]
[330039534,1718956814393,-803.22,0.00044657,120]
[330039535,1718956814612,-642.63,0.00044657,120]
[330039536,1718956814651,-670.74,0.00044657,120]
[330039537,1718956814687,-500.0,0.00044657,120]
[330039538,1718956814723,-2094.09,0.00044657,120]
[330039539,1718956814757,-2411.64,0.00044657,120]
[330039540,1718956814794,-787.77,0.00044657,120]
[330039541,1718956814832,-625.32,0.00044657,120]
[330039542,1718956814870,-1266.16,0.00044657,120]
[330039543,1718956814911,-500.0,0.00044657,120]
[330039544,1718956814952,-500.0,0.00044657,120]
[330039545,1718956814993,-2772.43,0.00044657,120]
[330039546,1718956815035,-500.0,0.00044657,120]
[330039547,1718956815072,-1109.59,0.00044657,120]
[330039548,1718956815109,-1313.17,0.00044657,120]
[330039549,1718956815147,-500.0,0.00044657,120]
[330039550,1718956815185,-523.74,0.00044657,120]
[330039551,1718956815232,-500.0,0.00044657,120]
[330039552,1718956815269,-521.03,0.00044657,120]
[330039553,1718956815307,-500.0,0.00044657,120]
[330039554,1718956815345,-500.0,0.00044657,120]
[330039555,1718956815383,-851.12,0.00044657,120]
[330039556,1718956815422,-716.39,0.00044657,120]
[330039557,1718956815463,-704.67,0.00044657,120]
[330039558,1718956815500,-500.0,0.00044657,120]
[330039559,1718956815538,-565.47,0.00044657,120]
[330039560,1718956815577,-500.0,0.00044657,120]
[330039561,1718956815616,-650.36,0.00044657,120]
[330039562,1718956815657,-500.0,0.00044657,120]
[330039563,1718956815695,-1835.83,0.00044657,120]
[330039564,1718956815744,-500.0,0.00044657,120]
[330039565,1718956815782,-1258.37,0.00044657,120]
[330039566,1718956815823,-500.0,0.00044657,120]
[330039567,1718956815863,-3398.89,0.00044657,120]
[330039568,1718956815905,-596.32,0.00044657,120]
[330039569,1718956815946,-755.86,0.00044657,120]
[330039570,1718956815993,-711.69,0.00044657,120]
[330039571,1718956816033,-500.0,0.00044657,120]
[330039572,1718956816071,-500.0,0.00044657,120]
[330039573,1718956816108,-500.75,0.00044657,120]
[330039574,1718956816144,-500.0,0.00044657,120]
[330039575,1718956816178,-500.0,0.00044657,120]
[330039576,1718956816213,-500.29,0.00044657,120]
[330039577,1718956816248,-5938.09,0.00044657,120]
[330039578,1718956816285,-1989.29,0.00044657,120]
[330039579,1718956816324,-772.45,0.00044657,120]
[330039580,1718956816361,-580.69,0.00044657,120]
[330039581,1718956816399,-500.0,0.00044657,120]
[330039582,1718956816436,-796.56,0.00044657,120]
[330039583,1718956816479,-569.37,0.00044657,120]
[330039584,1718956816517,-1290.44,0.00044657,120]
[330039585,1718956816555,-500.0,0.00044657,120]
[330039586,1718956816594,-500.0,0.00044657,120]
[330039587,1718956816636,-19890.01,0.00044657,120]
[330039588,1718956816675,-1802.42,0.00044657,120]
[330039589,1718956816715,-1199.39,0.00044657,120]
[330039590,1718956816752,-976.52199929,0.00044657,120]
[330040064,1718957431865,-950.90717399,0.00011698,2]
[330040065,1718957431877,-1539.61247108,0.00011698,2]
[330040066,1718957431887,-1412.49355045,0.00011698,2]
[330040067,1718957431897,-644.39375,0.00011698,2]
[330040068,1718957431944,-433.63234462,0.00011698,2]
[330040069,1718957431953,-300.0,0.00016845,2]
[330040070,1718957431962,-169.93,0.00016846,2]
[330040071,1718957431971,-420.0,0.00018402,2]
[330040072,1718957431980,-429.92,0.00019281,2]
[330040073,1718957431990,-587.0,0.00020102,2]
[330040074,1718957431999,-204.49,0.00020916,2]
[330040075,1718957432008,-250.0,0.00020921,2]
[330040076,1718957432017,-369.03,0.00020921,2]
[330040077,1718957432026,-250.0,0.00020993,2]
[330040078,1718957432035,-800.0,0.00021059,2]
[330040079,1718957432044,-250.14,0.00021084,30]
[330040080,1718957432053,-617.0,0.00021192,2]
[330040081,1718957432062,-166.0,0.00021192,2]
[330040082,1718957432071,-499.99,0.00021192,2]
[330040083,1718957432080,-812.0,0.00021192,2]
[330040084,1718957432097,-1067.0,0.00021192,2]
[330040085,1718957432106,-613.78,0.00021224,2]
[330040086,1718957432115,-1287.0,0.000213,4]
[330040087,1718957432125,-200.0,0.00021364,2]
[330040088,1718957432137,-485.34,0.00021644,2]
[330040089,1718957432146,-624.86498765,0.000219,2]
[330040090,1718957432156,-500.0,0.00021917,2]
[330040091,1718957432166,-154.55,0.00021918,2]
[330040092,1718957432177,-191.66,0.00021918,2]
[330040093,1718957432188,-339.0,0.00021959,2]
[330040094,1718957432197,-167.0,0.00021981,2]
[330040095,1718957432207,-150.59824253,0.00022003,2]
[330040096,1718957432216,-154.27131395,0.00022036,2]
[330040097,1718957432225,-153.95990554,0.0002207,2]
[330040098,1718957432235,-150.62551863,0.00022089,2]
[330040099,1718957432244,-208.70585475,0.0002209,2]
[330040100,1718957432253,-208.70585475,0.00022108,2]
[330040101,1718957432262,-155.59936832,0.00022124,2]
[330040102,1718957432272,-205.48,0.00022191,3]
[330040103,1718957432281,-162.2473133,0.00022204,2]
[330040104,1718957432291,-159.67442732,0.00022213,2]
[330040105,1718957432300,-166.083898,0.00022285,2]
[330040106,1718957432310,-154.49223323,0.00022294,2]
[330040107,1718957432320,-40788.82,0.00022341,5]
[330040108,1718957432329,-150.62551863,0.00022368,2]
[330040109,1718957432339,-8707.6649,0.0002237,2]
[330040110,1718957432348,-274.6897,0.0002237,2]
[330040111,1718957432368,-1252.7833,0.0002237,2]
[330040112,1718957432377,-150.74997781,0.0002238,2]
[330040113,1718957432386,-153.37075362,0.00022412,2]
[330040114,1718957432395,-150.74997781,0.0002242,2]
[330040115,1718957432405,-150.62551863,0.00022425,2]
[330040116,1718957432414,-153.95990554,0.00022434,2]
[330040117,1718957432423,-150.62551863,0.00022447,2]
[330040118,1718957432432,-1000.0,0.00022457,2]
[330040119,1718957432442,-100000.0,0.0002247,2]
[330040120,1718957432451,-6282.9137,0.0002247,2]
[330040121,1718957432461,-698.4351,0.0002247,2]
[330040122,1718957432470,-37553.0928,0.0002247,2]
[330040123,1718957432479,-500.0,0.0002247,2]
[330040124,1718957432488,-36.34710942,0.0002247,2]
[330040125,1718957432735,-625.3983,0.0002247,2]
[330040150,1718957437759,-306.42385462,0.0002247,2]
[330040151,1718957437773,-1093.009,0.0002247,2]
[330040152,1718957437902,-57.90373596,0.0002247,2]
[330040153,1718957437912,-731.82516669,0.0002247,2]
[330040154,1718957437925,-30615.12945141,0.0002247,2]
[330040155,1718957437974,-8058.0155819,0.0002247,2]
[330040156,1718957437985,-1000.0,0.0002247,2]
[330040157,1718957437995,-153.95990554,0.00022473,2]
[330040158,1718957438006,-208.70585475,0.00022483,2]
[330040159,1718957438016,-208.70585475,0.00022486,2]
[330040160,1718957438026,-2652.32116785,0.00022491,2]
[330040161,1718957438036,-208.70585475,0.00022505,2]
[330040162,1718957438047,-517.38745957,0.0002253,2]
[330040163,1718957438057,-208.70585475,0.0002256,2]
[330040164,1718957438073,-150.62551863,0.00022595,2]
[330040165,1718957438083,-153.95990554,0.00022595,2]
[330040166,1718957438094,-150.74997781,0.00022611,2]
[330040167,1718957438109,-163.86158843,0.00022679,2]
[330040168,1718957438119,-201.53902142,0.00022699,2]
[330040169,1718957438130,-208.70585475,0.0002274,2]
[330040170,1718957438140,-175.0,0.0002278,5]
[330040171,1718957438152,-2374.79710101,0.00022799,2]
[330040173,1718957438161,-3105.79028967,0.000228,2]
[330040175,1718957438171,-330.57400712,0.000228,2]
[330040177,1718957438183,-163.86158843,0.00022801,2]
[330040179,1718957438193,-500.0,0.00022806,2]
[330040181,1718957438203,-150.9132841,0.00022831,2]
[330040184,1718957438213,-162.2473133,0.00022841,2]
[330040186,1718957438222,-155.88395485,0.00022852,2]
[330040188,1718957438232,-208.70585475,0.00022853,2]
[330040190,1718957438242,-254.2059325,0.00022863,2]
[330040192,1718957438251,-208.70585475,0.00022877,2]
[330040194,1718957438262,-564.90339964,0.0002289,3]
[330040196,1718957438271,-174.60961132,0.0002289,2]
[330040198,1718957438281,-4711.27675974,0.0002289,2]
[330040200,1718957438291,-171.56244531,0.0002289,2]
[330040202,1718957438300,-738.28265505,0.0002289,2]
[330040204,1718957438310,-441.62325144,0.0002289,2]
[330040206,1718957438324,-10000.0,0.0002289,2]
[330040208,1718957438333,-315.9985246,0.00022899,2]
[330040210,1718957438343,-249999.99999999,0.000229,2]
[330040212,1718957438352,-150.0,0.000229,11]
[330040214,1718957438362,-152.26060601,0.00022934,2]
[330040216,1718957438372,-208.70585475,0.00022939,2]
[330040218,1718957438382,-796.88214578,0.00022989,2]
[330040220,1718957438392,-2000.0,0.00022989,2]
[330040222,1718957438403,-2000.0,0.00022989,2]
[330040224,1718957438413,-2000.0,0.00022989,2]
[330040226,1718957438423,-2000.0,0.00022989,2]
[330040228,1718957438433,-2000.0,0.00022989,2]
[330040230,1718957438443,-2000.0,0.00022989,2]
[330040232,1718957438453,-2000.0,0.00022989,2]
[330040234,1718957438463,-500.0,0.00022989,2]
[330040236,1718957438473,-373.74362171,0.00022989,2]
[330040239,1718957438483,-496.25550221,0.00022989,2]
[330040241,1718957438493,-520.0,0.0002299,2]
[330040243,1718957438503,-7192.6607117,0.0002299,2]
[330040245,1718957438513,-80639.58215504,0.0002299,9]
[330040247,1718957438526,-597.4,0.0002299,9]
[330040407,1718957440026,-158.8323994,0.00022852,2]
[330040409,1718957440036,-3063.3676006,0.0002299,9]
[330040415,1718957440088,-768.95049403,0.0002299,9]
[330040421,1718957440150,-6540.55781867,0.0002299,9]
[330040714,1718957442938,-2490.51964507,0.00011121,2]
[330040716,1718957442947,-319509.48035523,0.0002299,9]
[330040719,1718957442959,-340.41360284,0.0002299,9]
[330040721,1718957442971,-1129.62206954,0.0002299,9]
[330040736,1718957443112,-1887.08672504,0.0002299,9]
[330040966,1718957445976,-64390.22030635,0.0002299,9]
[330040969,1718957445988,-891.30000002,0.0002299,9]
[330041247,1718958331341,221.54,0.00025,60]
[330041300,1718958632615,-1747.5,0.0001766,2]
[330041301,1718958632628,-1662.04311441,0.0001766,2]
[330041302,1718958632640,-1521.76221221,0.0001766,2]
[330041303,1718958632778,-1052.60047608,0.0001766,2]
[330041304,1718958632790,-2209.76653514,0.0001766,2]
[330041305,1718958632940,-11776.62766216,0.0001766,2]
[330041306,1718958632949,-511.9,0.00018943,2]
[330041307,1718958632959,-782.61128053,0.00019431,2]
[330041308,1718958632969,-153.63,0.00019514,2]
[330041309,1718958632978,-153.88,0.00019519,2]
[330041310,1718958632987,-151.94,0.00019521,2]
[330041311,1718958632997,-499.99,0.00019521,2]
[330041312,1718958633006,-150.99,0.00019526,2]
[330041313,1718958633016,-153.86,0.00019526,2]
[330041314,1718958633025,-1000.0,0.00019627,2]
[330041315,1718958633035,-999.99,0.00019726,2]
[330041316,1718958633045,-200.0,0.00020371,2]
[330041317,1718958633054,-250.0,0.00020423,2]
[330041318,1718958633064,-250.0,0.00020438,2]
[330041320,1718958633073,-411.01,0.00020551,30]
[330041322,1718958633084,-808.41,0.00020601,2]
[330041324,1718958633097,-164.74,0.00020696,2]
[330041326,1718958633106,-1000.0,0.00020768,2]
[330041328,1718958633115,-4650.2,0.0002088,2]
[330041330,1718958633125,-640.0,0.00020886,2]
[330041332,1718958633135,-184.35,0.00020903,2]
[330041334,1718958633145,-164.74,0.00020912,2]
[330041336,1718958633154,-1250.0,0.00021,2]
[330041338,1718958633163,-365.66,0.00021059,2]
[330041340,1718958633172,-187.17,0.00021065,2]
[330041342,1718958633181,-164.74,0.00021127,2]
[330041345,1718958633190,-165.66,0.00021183,2]
[330041347,1718958633199,-165.66,0.00021201,2]
[330041349,1718958633207,-511.9,0.00021207,2]
[330041350,1718958633216,-165.66,0.00021218,2]
[330041352,1718958633226,-165.66,0.00021236,2]
[330041354,1718958633235,-165.66,0.00021254,2]
[330041356,1718958633244,-165.66,0.00021271,2]
[330041358,1718958633253,-165.66,0.00021289,2]
[330041360,1718958633263,-6434.0,0.000213,4]
[330041362,1718958633273,-162.04,0.00021317,2]
[330041364,1718958633282,-164.74,0.00021343,2]
[330041366,1718958633291,-1965.3,0.00021407,2]
[330041368,1718958633300,-164.74,0.00021559,2]
[330041369,1718958633310,-647.92,0.00021644,2]
[330041370,1718958633318,-153.72,0.00021644,2]